fUSD/lending_fUSD_20241021
["ID","MTS","AMOUNT","RATE_DAILY","PERIOD"]
[340618593,1729537838361,-257.04620124,0.00047919,120]
[340618594,1729537838371,-6923.66373045,0.00047919,10]
[340618595,1729537838381,-9231.5516406,0.0004792,10]
[340618596,1729537838390,-680.88733413,0.0004792,60]
[340618597,1729537838399,-200.0,0.00047922,60]
[340618598,1729537838408,-1392.31894603,0.00047926,90]
[340618599,1729537838418,-200.0,0.00047928,60]
[340618600,1729537838427,-17010.26324129,0.00047929,90]
[340618601,1729537838438,-273.9568893,0.00047929,90]
[340618602,1729537838447,-8440.26539037,0.0004793,90]
[340618604,1729537839033,-1656.96940033,0.0004793,90]
[340618606,1729537839045,-726.06500125,0.0004793,90]
[340618696,1729537839862,-785.78223768,0.0004793,90]
[340618698,1729537839874,-1558.9348291,0.0004793,90]
[340618746,1729537842398,-4116.20327186,0.0004793,90]
[340618747,1729537842407,-9231.5516406,0.00047933,10]
[340618749,1729537842416,-200.0,0.00047935,60]
[340618751,1729537842425,-1392.31894603,0.00047935,90]
[340618759,1729537842559,-15272.64322891,0.00047937,10]
[340618760,1729537842571,-932.50624994,0.00047937,10]
[340618761,1729537842583,-590.81436457,0.00047937,10]
[340618762,1729537842593,-513.18500005,0.00047937,10]
[340618763,1729537842605,-1153.95443773,0.00047937,10]
[340618764,1729537842614,-1392.31894603,0.00047938,90]
[340618765,1729537842623,-500.0,0.00047939,120]
[340618766,1729537842631,-2104.56656425,0.0004794,10]
[340618767,1729537842642,-203.3213459,0.0004794,10]
[340618768,1729537842651,-17284.22013059,0.00047943,90]
[340618769,1729537842661,-375.0,0.00047943,14]
[340618770,1729537842671,-2423.49209405,0.00047944,90]
[340618771,1729537842679,-1000.0,0.00047945,120]
[340618772,1729537842689,-39753.70630049,0.00047947,60]
[340618773,1729537842700,-2423.49209405,0.0004795,90]
[340618774,1729537842708,-680.88733413,0.0004795,60]
[340618775,1729537842718,-2307.88791015,0.0004795,10]
[340618776,1729537842727,-680.88733413,0.00047953,60]
[340618777,1729537842736,-200.0,0.00047957,60]
[340618778,1729537842745,-3202.33357601,0.0004796,60]
[340618779,1729537842754,-296.0379713,0.00047962,90]
[340618780,1729537842765,-2423.49209405,0.00047964,90]
[340618781,1729537842774,-2307.88791015,0.00047965,10]
[340618782,1729537842784,-138.40093317,0.00047966,2]
[340618787,1729537842824,-672.54591315,0.00047966,2]
[340618789,1729537842833,-2.19789851,0.00047967,60]
[340618791,1729537842845,-660.19,0.00047967,60]
[340618793,1729537842856,-18.49943562,0.00047967,60]
[340618795,1729537842866,-160.84917572,0.00047973,10]
[340618797,1729537842875,-2025.10562513,0.00047974,10]
[340618799,1729537842887,-282.78228502,0.00047974,10]
[340618801,1729537842896,-680.88733413,0.00047975,60]
[340618802,1729537842906,-2954.01521831,0.00047978,64]
[340618803,1729537842915,-318.0,0.00047984,7]
[340618804,1729537842925,-1187.59256779,0.00047984,60]
[340618817,1729537843068,-512.00786555,0.00047984,60]
[340618819,1729537843140,-3874.4313831,0.00047984,60]
[340618820,1729537843221,-152.8951123,0.00047988,60]
[340618822,1729537843322,-3799.999993,0.00047988,60]
[340618825,1729537843498,-2743.43994,0.00047988,60]
[340618827,1729537843604,-835.04991627,0.00047988,60]
[340618829,1729537845445,-1444.5,0.00047849,120]
[340618830,1729537845455,-1802.71651196,0.00047988,60]
[340618831,1729537845487,-534.05173533,0.00047988,60]
[340618832,1729537845499,-1650.24238056,0.00047988,60]
[340618833,1729537845532,-28235.31071107,0.00047988,60]
[340618834,1729537845543,-151.49,0.0004799,2]
[340618835,1729537845555,-229.25667007,0.0004799,2]
[340618836,1729537845565,-151.49,0.0004799,120]
[340618837,1729537845575,-151.49,0.0004799,120]
[340618838,1729537845585,-151.49,0.0004799,120]
[340618839,1729537845596,-151.49,0.0004799,120]
[340618840,1729537845607,-200.0,0.00047993,60]
[340618841,1729537845616,-5574.03181644,0.00047994,60]
[340618842,1729537845627,-156.10828266,0.00047999,31]
[340618843,1729537845637,-2000.0,0.00047999,120]
[340618844,1729537845647,-31511.88542544,0.00048,58]
[340618845,1729537845659,-317.99702995,0.00048,58]
[340618846,1729537845671,-12484.11238078,0.00048,58]
[340618847,1729537845695,-315.79999999,0.00048,58]
[340618848,1729537845708,-272.81514136,0.00048,58]
[340618866,1729537879587,158.43,0.00010959,2]
[340618872,1729538395106,157.64,0.00010959,2]
[340618873,1729538456329,250.0,0.0001,2]
[340618876,1729538708088,44759.52,0.00011,2]
[340618877,1729538708119,49543.6,0.00011,2]
[340618878,1729538708151,6623691.21588648,0.00011,2]
[340618891,1729538918358,150.0,0.00015,3]
[340618906,1729539031743,-1539.6573271,0.00039,30]
[340618907,1729539031787,-1674.56555788,0.00039,30]
[340618908,1729539031938,-8724.07808654,0.00039,30]
[340618937,1729539038344,-753.5797596,0.00039,30]
[340618938,1729539038383,-1871.92326888,0.00039,30]
[340618939,1729539038392,-718.085,0.00040544,2]
[340618940,1729539038401,-150.0,0.00041999,4]
[340618942,1729539038410,-14503.61664482,0.00042,30]
[340618947,1729539038528,-667.76472037,0.00042,30]
[340618948,1729539038541,-326.82220256,0.00042,30]
[340618949,1729539038575,-12052.74233246,0.00042,30]
[340618954,1729539039473,-26598.08282871,0.00042,30]
[340618955,1729539039482,-84018.13720384,0.000425,120]
[340618956,1729539039491,-1000.0,0.000429,2]
[340618957,1729539039501,-61039.7822344,0.00043,10]
[340618958,1729539039510,-62646.35462876,0.00043,2]
[340618959,1729539039520,-168.34,0.00043,30]
[340618960,1729539039529,-150.99,0.00043,2]
[340618962,1729539039540,-331.05,0.00043,2]
[340618963,1729539039550,-4241.73,0.00043,2]
[340618964,1729539039560,-1493.06,0.00043,2]
[340618965,1729539039569,-329.99,0.00044246,2]
[340618966,1729539039577,-362.95,0.00045249,2]
[340618967,1729539039587,-23890.0,0.00045324,2]
[340618968,1729539039597,-7285.03,0.00045421,2]
[340618969,1729539039606,-250.0,0.00045468,120]
[340618970,1729539039615,-200.0,0.00045496,2]
[340618971,1729539039624,-641.24621456,0.00045667,17]
[340618972,1729539039633,-500.0,0.00045766,120]
[340618973,1729539039643,-500.0,0.00045766,120]
[340618975,1729539039652,-500.0,0.00045766,120]
[340618977,1729539039662,-500.0,0.00045766,120]
[340618978,1729539039671,-500.0,0.00045766,120]
[340618979,1729539039680,-500.0,0.00045766,120]
[340618980,1729539039689,-337.10985348,0.00045766,120]
[340618981,1729539039699,-500.0,0.00045766,120]
[340618982,1729539039709,-1425.88,0.00045767,120]
[340618983,1729539039720,-9999.99,0.00045767,2]
[340618984,1729539039729,-88794.58,0.00045767,10]
[340618985,1729539039737,-2674.66,0.00045767,2]
[340618986,1729539039747,-442.53,0.00045767,10]
[340618987,1729539039756,-360.31,0.00045767,90]
[340618988,1729539039766,-499.99,0.00045767,2]
[340618989,1729539039775,-499.99,0.00045767,2]
[340618990,1729539039785,-150.0,0.0004579,2]
[340618991,1729539039794,-157.0,0.00045809,2]
[340618992,1729539039804,-250.0,0.00045971,2]
[340618993,1729539039814,-1292.19,0.00045971,2]
[340618994,1729539039823,-150.99,0.00045971,30]
[340618995,1729539039832,-154.988,0.00045971,2]
[340618996,1729539039843,-1500.0,0.00045997,2]
[340618997,1729539039853,-354.76,0.00045997,2]
[340618998,1729539039862,-299.99,0.00045997,120]
[340618999,1729539039871,-187.43,0.00046053,120]
[340619000,1729539039881,-250.0,0.000461,120]
[340619001,1729539039891,-593.95888804,0.00046241,120]
[340619002,1729539039902,-1000.0,0.0004638,2]
[340619003,1729539039912,-329.99,0.0004651,2]
[340619004,1729539039922,-180.98,0.00046553,2]
[340619005,1729539039932,-301.29916606,0.00046798,28]
[340619006,1729539039942,-5439.675,0.00046898,78]
[340619007,1729539039953,-1785.88285236,0.00046898,120]
[340619008,1729539039962,-176.73,0.00046898,120]
[340619009,1729539039972,-175.634,0.00046898,78]
[340619010,1729539039981,-301.29916606,0.00046955,28]
[340619011,1729539039991,-4143.0,0.00046957,117]
[340619012,1729539040000,-200.47,0.00047,120]
[340619013,1729539040010,-172.12,0.00047038,2]
[340619014,1729539040019,-424.52,0.00047041,2]
[340619015,1729539040029,-301.29916606,0.00047113,28]
[340619016,1729539040038,-301.29916606,0.0004727,28]
[340619017,1729539040048,-301.29916606,0.00047428,28]
[340619018,1729539040057,-250.11,0.000475,120]
[340619019,1729539040066,-21604.98841945,0.0004752,2]
[340619020,1729539040075,-301.29916606,0.00047585,28]
[340619021,1729539040084,-500.0,0.00047671,120]
[340619022,1729539040094,-1384.32,0.00047671,120]
[340619023,1729539040103,-301.29916606,0.00047743,28]
[340619024,1729539040113,-2000.0,0.0004776,2]
[340619025,1729539040122,-2242.692952,0.000478,2]
[340619027,1729539040132,-9245.1333,0.00047847,2]
[340619029,1729539040141,-500.0,0.00047849,14]
[340619031,1729539040150,-500.0,0.00047864,120]
[340619033,1729539040159,-1000.0,0.00047864,120]
[340619035,1729539040169,-151.49,0.0004789,2]
[340619037,1729539040178,-875.53310402,0.0004789,2]
[340619039,1729539040187,-4343.6658,0.0004789,2]
[340619041,1729539040196,-8491.0719,0.0004789,2]
[340619043,1729539040205,-500.0,0.00047899,120]
[340619045,1729539040214,-500.0,0.00047899,120]
[340619047,1729539040223,-500.0,0.00047899,120]
[340619049,1729539040233,-500.0,0.00047899,120]
[340619051,1729539040242,-999.0,0.00047899,120]
[340619053,1729539040251,-999.0,0.00047899,120]
[340619055,1729539040260,-999.0,0.00047899,120]
[340619057,1729539040269,-999.0,0.00047899,120]
[340619058,1729539040278,-999.0,0.00047899,120]
[340619059,1729539040287,-999.0,0.00047899,120]
[340619060,1729539040296,-999.0,0.00047899,120]
[340619061,1729539040305,-999.0,0.00047899,120]
[340619062,1729539040314,-999.0,0.00047899,120]
[340619063,1729539040323,-999.0,0.00047899,120]
[340619064,1729539040332,-999.0,0.00047899,120]
[340619065,1729539040341,-999.0,0.00047899,120]
[340619066,1729539040350,-999.0,0.00047899,120]
[340619067,1729539040359,-999.0,0.00047899,120]
[340619068,1729539040369,-901.19,0.00047899,120]
[340619069,1729539040378,-5191.49728111,0.000479,2]
[340619070,1729539040387,-300.0,0.000479,2]
[340619071,1729539040396,-179.80401251,0.000479,23]
[340619072,1729539040405,-62797.6709,0.000479,2]
[340619073,1729539040414,-1113.4946,0.000479,2]
[340619074,1729539040423,-1186.6985,0.000479,2]
[340619075,1729539040432,-160.67905642,0.000479,30]
[340619076,1729539040441,-6254.72822487,0.000479,120]
[340619077,1729539040450,-301.29916606,0.000479,28]
[340619078,1729539040459,-291.141081,0.000479,14]
[340619079,1729539040468,-291.141081,0.000479,14]
[340619080,1729539040477,-168.22997927,0.000479,2]
[340619081,1729539040486,-173.40399217,0.000479,2]
[340619082,1729539040495,-166.577191,0.000479,14]
[340619083,1729539040504,-1025.90929322,0.000479,2]
[340619084,1729539040514,-6254.72822486,0.00047944,120]
[340619085,1729539040523,-163.72338282,0.00047945,120]
[340619086,1729539040532,-1384.32,0.00047945,120]
[340619087,1729539040544,-204.91751902,0.00047973,10]
[340619089,1729539040553,-500.0,0.00047973,2]
[340619090,1729539040562,-4930.88165594,0.00047984,15]
[340619092,1729539040571,-6254.72822486,0.00047989,120]
[340619094,1729539040580,-258.303622,0.0004799,14]
[340619096,1729539040589,-258.303622,0.0004799,14]
[340619098,1729539040599,-151.49,0.0004799,120]
[340619100,1729539040607,-151.49,0.0004799,120]
[340619102,1729539040617,-151.49,0.0004799,120]
[340619104,1729539040627,-151.49,0.0004799,120]
[340619105,1729539040636,-151.49,0.0004799,120]
[340619108,1729539040647,-151.49,0.0004799,120]
[340619110,1729539040656,-151.49,0.0004799,120]
[340619112,1729539040665,-151.49,0.0004799,120]
[340619114,1729539040674,-151.49,0.0004799,120]
[340619115,1729539040684,-151.49,0.0004799,120]
[340619117,1729539040693,-151.49,0.0004799,120]
[340619119,1729539040702,-151.49,0.0004799,120]
[340619122,1729539040711,-151.49,0.0004799,120]
[340619123,1729539040720,-151.49,0.0004799,120]
[340619125,1729539040729,-151.49,0.0004799,120]
[340619127,1729539040738,-151.49,0.0004799,120]
[340619129,1729539040747,-151.49,0.0004799,120]
[340619131,1729539040756,-875.53310402,0.0004799,2]
[340619133,1729539040765,-875.53310402,0.0004799,2]
[340619135,1729539040775,-2891.3403701,0.00047991,2]
[340619137,1729539040784,-3383.1498477,0.00047991,2]
[340619140,1729539040803,-3874.9593252,0.00047991,2]
[340619143,1729539040814,-4366.7688028,0.00047991,2]
[340619145,1729539040824,-4858.5782803,0.00047991,2]
[340619147,1729539040834,-993.1605661,0.00047991,2]
[340619149,1729539040843,-1162.0945955,0.00047991,2]
[340619151,1729539040853,-1331.0286249,0.00047991,2]
[340619153,1729539040862,-1499.9626544,0.00047991,2]
[340619155,1729539040872,-1668.8966838,0.00047991,2]
[340619157,1729539040881,-881.4918001,0.00047991,2]
[340619159,1729539040890,-993.3706575,0.00047991,2]
[340619161,1729539040899,-1105.2495148,0.00047991,2]
[340619163,1729539040909,-2399.5308925,0.00047994,2]
[340619165,1729539040918,-824.2265367,0.00047994,2]
[340619167,1729539040929,-545.855228,0.00047994,2]
[340619169,1729539040939,-657.7340853,0.00047994,2]
[340619171,1729539040949,-769.6129427,0.00047994,2]
[340619173,1729539040958,-375.0,0.00047999,14]
[340619175,1729539040968,-500.0,0.00047999,120]
[340619177,1729539040977,-698.69,0.00047999,7]
[340619179,1729539040986,-2000.0,0.00047999,120]
[340619181,1729539040996,-5097.39002248,0.00048,58]
[340619183,1729539041005,-197.0,0.00048,7]
[340619185,1729539041014,-2500.0,0.00048,120]
[340619187,1729539041023,-77388.16176479,0.00048,60]
[340619189,1729539041033,-758465.27707737,0.00048,120]
[340619191,1729539041042,-669.28795768,0.00048,120]
[340619193,1729539041052,-445.04899938,0.00048,61]
[340619195,1729539041061,-2048.91349201,0.00048,30]
[340619197,1729539041071,-150.0,0.00048,90]
[340619199,1729539041080,-250000.0,0.00048,30]
[340619201,1729539041089,-2110.0,0.00048,2]
[340619203,1729539041100,-1000000.0,0.00048,120]
[340619205,1729539041109,-1000000.0,0.00048,120]
[340619207,1729539041118,-1000000.0,0.00048,120]
[340619209,1729539041127,-482506.77401177,0.00048,120]
[340619211,1729539041143,-65328.18900432,0.00048,120]
[340619214,1729539041155,-3833.2,0.00048,120]
[340619216,1729539041167,-66269.01376712,0.00048,120]
[340619218,1729539041179,-1033.87173578,0.00048,120]
[340619220,1729539041190,-502.06164559,0.00048,120]
[340619223,1729539041201,-3704.3360605,0.00048,120]
[340619344,1729539042726,-500.0,0.00047671,120]
[340619345,1729539042735,-2273.702005,0.000479,14]
[340619346,1729539042745,-8173.77273728,0.000479,2]
[340619347,1729539042755,-37145.19536404,0.00048,120]
[340619375,1729539975923,163.41,0.00010959,2]
[340619412,1729540231739,-1258.0,0.000208,2]
[340619413,1729540231749,-150.0,0.00034548,10]
[340619414,1729540231759,-348.56,0.00044662,2]
[340619415,1729540231768,-763.26622891,0.00044937,117]
[340619416,1729540231779,-2599.99999999,0.00044937,117]
[340619417,1729540231802,-716.81260695,0.00044937,117]
[340619418,1729540231868,-62.92116415,0.00044937,117]
[340619419,1729540231877,-181.47,0.00046293,2]
[340619420,1729540231887,-39.5472353,0.00046418,2]
[340619421,1729540231934,-110.4527647,0.00046418,2]
[340619422,1729540231943,-162.0172353,0.00046418,2]
[340619423,1729540231955,-337.9727647,0.00046418,2]
[340619424,1729540231965,-16.9072353,0.00046418,2]
[340619425,1729540232062,-322.26793109,0.00046418,2]
[340619433,1729540238023,-250.0,0.00046287,120]
[340619434,1729540238033,-513.91483361,0.00046418,2]
[340619435,1729540238045,-1800.83630289,0.00046485,7]
[340619436,1729540238059,-1220.78618031,0.00046485,7]
[340619437,1729540238071,-3534.44466044,0.00046485,7]
[340619438,1729540238084,-720.62291816,0.00046485,7]
[340619439,1729540238096,-1808.38775576,0.00046485,7]
[340619440,1729540238106,-157.0,0.00046486,2]
[340619441,1729540238116,-250.0,0.0004658,120]
[340619442,1729540238125,-74.15126517,0.0004658,2]
[340619443,1729540238137,-76.83873483,0.0004658,2]
[340619444,1729540238146,-250.0,0.00046675,120]
[340619445,1729540238156,-122.75796248,0.00046794,120]
[340619446,1729540238168,-55.29203752,0.00046794,120]
[340619447,1729540238177,-449.17212671,0.00046815,2]
[340619448,1729540238189,-550.82787329,0.00046815,2]
[340619449,1729540238199,-348.56,0.00046926,2]
[340619450,1729540238209,-299.49,0.00046973,120]
[340619451,1729540238218,-158.91,0.00046989,2]
[340619452,1729540238227,-269.41601431,0.000475,120]
[340619453,1729540238237,-500.0,0.00047671,120]
[340619454,1729540238248,-669.57,0.00047671,60]
[340619455,1729540238257,-500.0,0.00047671,14]
[340619456,1729540238267,-344.78555693,0.00047671,120]
[340619457,1729540238276,-150.0,0.00047671,4]
[340619458,1729540238286,-1000.0,0.00047671,120]
[340619459,1729540238296,-598.49646682,0.000477,19]
[340619460,1729540238306,-229.97092601,0.000477,28]
[340619461,1729540238315,-2000.5021,0.0004776,2]
[340619462,1729540238325,-2000.0,0.0004776,2]
[340619463,1729540238335,-500.0,0.00047799,120]
[340619464,1729540238344,-500.0,0.00047799,120]
[340619465,1729540238354,-582.63759094,0.00047799,120]
[340619466,1729540238363,-500.0,0.00047799,120]
[340619467,1729540238373,-1268.96,0.00047799,120]
[340619468,1729540238384,-8246.09157229,0.000478,120]
[340619469,1729540238396,-1879.79073718,0.000478,120]
[340619470,1729540238407,-845.57482597,0.000478,120]
[340619471,1729540238419,-590.62314607,0.000478,120]
[340619472,1729540238430,-466.04475668,0.000478,120]
[340619473,1729540238442,-13257.40208425,0.000478,120]
[340619474,1729540238453,-18712.82227084,0.000478,120]
[340619475,1729540238465,-726.22550044,0.000478,120]
[340619476,1729540238476,-585.41820824,0.000478,120]
[340619477,1729540238487,-435.33770526,0.000478,120]
[340619478,1729540238501,-19584.17613878,0.000478,120]
[340619479,1729540238513,-3051.54944454,0.000478,120]
[340619480,1729540238524,-7442.804616,0.000478,120]
[340619481,1729540238734,-1048.11901464,0.000478,120]
[340619482,1729540238750,-728.78495617,0.000478,120]
[340619483,1729540238761,-2500.14790047,0.000478,120]
[340619484,1729540238772,-2139.24974855,0.000478,120]
[340619485,1729540238784,-11085.46497938,0.000478,120]
[340619517,1729540239762,-353.59275053,0.000478,120]
[340619518,1729540239826,-835.71347657,0.000478,120]
[340619519,1729540239839,-4618.18028875,0.000478,120]
[340619520,1729540239851,-1712.60255248,0.000478,120]
[340619521,1729540240008,-385.33062145,0.000478,120]
[340619522,1729540240019,-2161.93590095,0.000478,120]
[340619523,1729540240031,-256.62236691,0.000478,120]
[340619524,1729540240071,-6367.9,0.000478,120]
[340619539,1729540243008,-41478.9103955,0.000478,120]
[340619540,1729540243023,-1351.68,0.000478,120]
[340619541,1729540243172,-338.66589701,0.000478,120]
[340619542,1729540243188,-644.84876096,0.000478,120]
[340619543,1729540243199,-339.13191,0.000478,120]
[340619544,1729540243277,-0.237923,0.000478,120]
[340619545,1729540243301,-3282.0027101,0.000478,120]
[340619546,1729540243313,-30430.79376527,0.000478,120]
[340619554,1729540245750,-273.18016177,0.000478,120]
[340619555,1729540245761,-597.61986677,0.000478,120]
[340619556,1729540245813,-1060.8,0.000478,120]
[340619557,1729540245935,-6134.45000001,0.000478,120]
[340619558,1729540245947,-1701.680942,0.000478,120]
[340619559,1729540245999,-5798.71108862,0.000478,120]
[340619560,1729540246011,-6288.4358,0.000478,120]
[340619561,1729540246078,-38314.03517106,0.000478,120]
[340619562,1729540246091,-949.65,0.000478,120]
[340619563,1729540246148,-4712.29947184,0.000478,120]
[340619564,1729540246160,-263.86078829,0.000478,120]
[340619567,1729540258613,250.0,0.0001,2]
[340619605,1729541103247,-300.0,0.00019725,2]
[340619607,1729541147766,158.43,0.00010959,2]
[340619610,1729541162742,-300.0,0.00019725,2]
[340619675,1729541431914,-492.0,0.000208,2]
[340619676,1729541431925,-1044.0,0.00024,5]
[340619677,1729541431934,-1000.0,0.00024,6]
[340619678,1729541431943,-8634.59607489,0.000312,2]
[340619679,1729541431965,-1864.64228295,0.000312,2]
[340619680,1729541431975,-1000.0,0.000313,15]
[340619681,1729541431984,-1000.0,0.0004,30]
[340619682,1729541431993,-404.26431377,0.00040221,7]
[340619683,1729541432020,-6423.96488623,0.00040221,7]
[340619684,1729541432029,-395.22,0.00044387,2]
[340619685,1729541432039,-5789.913,0.00044927,72]
[340619686,1729541432048,-1884.99,0.00044927,2]
[340619687,1729541432058,-168.883,0.00044927,72]
[340619688,1729541432068,-1000.0,0.00045,30]
[340619689,1729541432078,-313.898814,0.00046,30]
[340619690,1729541432089,-1000.0,0.00046,30]
[340619691,1729541432099,-263.0,0.00046013,30]
[340619692,1729541432108,-23900.0,0.00046202,2]
[340619693,1729541432118,-250.0,0.0004621,120]
[340619694,1729541432128,-239.59,0.00046229,120]
[340619695,1729541432137,-250.0,0.00046249,2]
[340619696,1729541432146,-250.0,0.00046251,120]
[340619697,1729541432156,-157.0,0.00046267,2]
[340619698,1729541432165,-1000.0,0.00046296,2]
[340619699,1729541432175,-181.47,0.00046336,2]
[340619700,1729541432185,-180.42,0.00046481,120]
[340619701,1729541432194,-150.0,0.00046573,4]
[340619702,1729541432203,-395.22,0.00046651,2]
[340619703,1729541432214,-154.85,0.00046822,120]
[340619704,1729541432224,-3295.34677035,0.00047,120]
[340619705,1729541432233,-396.58999999,0.00047,120]
[340619707,1729541432243,-684.75068197,0.00047,2]
[340619709,1729541432255,-638.67272336,0.00047,2]
[340619711,1729541432267,-8666.55659468,0.00047,2]
[340619712,1729541432277,-518.1908,0.000477,2]
[340619713,1729541432286,-7764.32964617,0.000477,2]
[340619715,1729541432298,-3084.0,0.000477,2]
[340619717,1729541432309,-535.511,0.000477,2]
[340619719,1729541432324,-12283.28025383,0.000477,2]
[340619722,1729541432335,-2538.3461,0.000477,2]
[340619724,1729541432344,-177.02517029,0.000477,2]
[340619726,1729541432356,-608.86029484,0.000477,2]
[340619728,1729541432367,-4.80813487,0.000477,2]
[340619730,1729541432376,-7375.16218228,0.000477,2]
[340619732,1729541432388,-1585.07751772,0.000477,2]
[340619734,1729541432397,-13430.6738,0.000477,2]
[340619736,1729541432406,-1020.4687,0.000477,2]
[340619738,1729541432416,-13019.18018021,0.000477,30]
[340619740,1729541432427,-9628.0679034,0.000477,30]
[340619743,1729541432439,-377.39865896,0.000477,30]
[340619745,1729541432450,-29797.47825743,0.000477,30]
[340619747,1729541432461,-896.9786,0.000477,2]
[340619749,1729541432471,-150.0,0.00047726,7]
[340619750,1729541432480,-150.0,0.00047735,2]
[340619751,1729541432491,-150.0,0.00047736,7]
[340619752,1729541432500,-150.0,0.0004774,7]
[340619753,1729541432509,-150.0,0.00047742,7]
[340619754,1729541432522,-150.0,0.00047743,7]
[340619755,1729541432535,-150.0,0.00047751,7]
[340619756,1729541432546,-150.0,0.00047753,7]
[340619757,1729541432557,-150.0,0.00047755,7]
[340619758,1729541432568,-2000.0,0.0004776,2]
[340619759,1729541432579,-150.0,0.00047766,14]
[340619760,1729541432591,-150.0,0.00047768,7]
[340619761,1729541432602,-161.02985052,0.00047773,10]
[340619762,1729541432613,-150.0,0.00047778,7]
[340619763,1729541432623,-150.0,0.00047787,7]
[340619764,1729541432633,-5265.38369707,0.0004779,10]
[340619765,1729541432646,-9058.09230667,0.0004779,10]
[340619766,1729541432664,-1866.88952836,0.0004779,10]
[340619767,1729541432677,-156.21976284,0.00047791,7]
[340619768,1729541432687,-150.0,0.00047792,7]
[340619769,1729541432699,-558.59670244,0.00047792,19]
[340619770,1729541432709,-150.0,0.00047794,7]
[340619771,1729541432720,-391.39613082,0.00047799,120]
[340619787,1729541438263,-617.0,0.000313,2]
[340619788,1729541438273,-108.60386918,0.00047799,120]
[340619789,1729541438283,-641.68,0.00047799,60]
[340619790,1729541438294,-59.84611354,0.00047799,120]
[340619791,1729541438306,-440.15388646,0.00047799,120]
[340619792,1729541438317,-1000.0,0.00047799,120]
[340619793,1729541438327,-500.0,0.00047799,14]
[340619794,1729541438339,-2500.0,0.00047799,120]
[340619795,1729541438349,-1287.57,0.00047799,120]
[340619796,1729541438359,-84.12376202,0.000478,60]
[340619797,1729541438371,-24059.66385186,0.000478,60]
[340619798,1729541438383,-1792.05630202,0.000478,60]
[340619799,1729541438393,-19028.66123235,0.000478,120]
[340619800,1729541438406,-104856.45855206,0.000478,120]
[340619801,1729541438418,-150.0,0.000478,7]
[340619802,1729541438431,-150.0,0.00047811,7]
[340619803,1729541438441,-196.24225277,0.00047812,7]
[340619804,1729541438453,-150.0,0.00047839,14]
[340619805,1729541438463,-150.0,0.00047844,14]
[340619806,1729541438473,-150.0,0.00047849,7]
[340619807,1729541438483,-150.0,0.00047852,7]
[340619808,1729541438494,-150.0,0.00047852,7]
[340619809,1729541438504,-150.0,0.00047862,7]
[340619810,1729541438514,-150.0,0.00047876,7]
[340619811,1729541438525,-150.0,0.00047882,7]
[340619812,1729541438536,-150.0,0.00047883,7]
[340619813,1729541438546,-500.0,0.00047888,120]
[340619814,1729541438556,-227.791929,0.00047888,120]
[340619815,1729541438566,-3238.07310643,0.00047889,10]
[340619816,1729541438576,-77713.7545543,0.0004789,10]
[340619817,1729541438587,-150.0,0.00047892,7]
[340619818,1729541438598,-500.0,0.00047899,120]
[340619819,1729541438608,-150.0,0.00047899,7]
[340619820,1729541438618,-500.0,0.00047899,120]
[340619821,1729541438628,-500.0,0.00047899,120]
[340619822,1729541438638,-500.0,0.00047899,120]
[340619823,1729541438650,-642.4834259,0.00047899,120]
[340619824,1729541438661,-500.0,0.00047899,120]
[340619825,1729541438673,-1274.58007486,0.00047899,120]
[340619826,1729541438683,-364.85579358,0.00047899,120]
[340619827,1729541438694,-300.0,0.000479,30]
[340619828,1729541438704,-59137.66432195,0.000479,120]
[340619829,1729541438717,-858.216,0.000479,120]